[Event "Early-Titled-Tuesday-Blitz-March-26-2024"]
[Site "Chess.com"]
[Date "2024.03.26"]
[Round "7"]
[White "masnyszachistaaa"]
[Black "Mops_2004"]
[Result "1-0"]
[WhiteElo "2599"]
[BlackElo "2797"]
[TimeControl "180+1"]
[EndTime "9:16:30 PDT"]
[Termination "masnyszachistaaa won by resignation"]

1. c4 {[%clk 0:03:00.9]} 1... e5 {[%clk 0:02:58.9]} 2. Nc3 {[%clk 0:02:59.7]}
2... Bb4 {[%clk 0:02:58.4]} 3. g3 {[%clk 0:02:54.2]} 3... Bxc3 {[%clk
0:02:58.5]} 4. bxc3 {[%clk 0:02:47.2]} 4... d6 {[%clk 0:02:58.8]} 5. Bg2 {[%clk
0:02:45.9]} 5... Nc6 {[%clk 0:02:59.2]} 6. d3 {[%clk 0:02:35.7]} 6... Nge7
{[%clk 0:02:58.4]} 7. e4 {[%clk 0:02:09.8]} 7... f5 {[%clk 0:02:54.8]} 8. Ne2
{[%clk 0:02:08.4]} 8... fxe4 {[%clk 0:02:50.9]} 9. Bxe4 {[%clk 0:02:09.3]} 9...
Bh3 {[%clk 0:02:48.5]} 10. Nf4 {[%clk 0:02:01.4]} 10... Bd7 {[%clk 0:02:23.2]}
11. Qh5+ {[%clk 0:02:00.5]} 11... Kf8 {[%clk 0:02:23.9]} 12. Ne2 {[%clk
0:01:22.5]} 12... Qe8 {[%clk 0:02:17.6]} 13. Qf3+ {[%clk 0:01:16.9]} 13... Qf7
{[%clk 0:02:16.3]} 14. Qg2 {[%clk 0:01:17.3]} 14... Bf5 {[%clk 0:02:07.7]} 15.
O-O {[%clk 0:01:04.4]} 15... Bxe4 {[%clk 0:02:04.7]} 16. Qxe4 {[%clk 0:01:05.3]}
16... Qf5 {[%clk 0:01:56.2]} 17. Qxf5+ {[%clk 0:01:05.2]} 17... Nxf5 {[%clk
0:01:56]} 18. f4 {[%clk 0:01:05.9]} 18... e4 {[%clk 0:01:37.8]} 19. dxe4 {[%clk
0:01:03.1]} 19... Nh6 {[%clk 0:01:38.4]} 20. Nd4 {[%clk 0:01:00.9]} 20... Re8
{[%clk 0:01:34.8]} 21. e5 {[%clk 0:00:58.2]} 21... Nf7 {[%clk 0:01:19.7]} 22.
Nb5 {[%clk 0:00:41.3]} 22... dxe5 {[%clk 0:01:03.1]} 23. Ba3+ {[%clk 0:00:37.7]}
23... Kg8 {[%clk 0:01:00.3]} 24. Nxc7 {[%clk 0:00:36.8]} 24... Rc8 {[%clk
0:00:58.1]} 25. Nd5 {[%clk 0:00:36.9]} 25... e4 {[%clk 0:00:51]} 26. Rfe1 {[%clk
0:00:36.7]} 26... Re8 {[%clk 0:00:51.1]} 27. Ne7+ {[%clk 0:00:24.1]} 27... Rxe7
{[%clk 0:00:22.3]} 28. Bxe7 {[%clk 0:00:23.7]} 28... Nxe7 {[%clk 0:00:23.2]} 29.
Rxe4 {[%clk 0:00:24]} 29... Ng6 {[%clk 0:00:23.6]} 30. Re8+ {[%clk 0:00:23.2]}
30... Nf8 {[%clk 0:00:23.9]} 31. Rae1 {[%clk 0:00:21.4]} 31... g5 {[%clk
0:00:22.7]} 32. R1e7 {[%clk 0:00:09.8]} 32... gxf4 {[%clk 0:00:17.7]} 33. gxf4
{[%clk 0:00:09.1]} 33... Kg7 {[%clk 0:00:13.9]} 34. Rxb7 {[%clk 0:00:08]} 34...
Kf6 {[%clk 0:00:11.4]} 35. Rbb8 {[%clk 0:00:06.1]} 35... Kg7 {[%clk 0:00:10]}
36. c5 {[%clk 0:00:06.2]} 36... h5 {[%clk 0:00:05.4]} 37. c6 {[%clk 0:00:06.4]}
37... Rh6 {[%clk 0:00:05.6]} 38. c7 {[%clk 0:00:04.5]} 38... Nd6 {[%clk
0:00:04.3]} 39. Rxf8 {[%clk 0:00:03.7]} 39... Rg6+ {[%clk 0:00:04.9]} 40. Kf1
{[%clk 0:00:02.6]} 40... Re6 {[%clk 0:00:05.6]} 41. Rg8+ {[%clk 0:00:03]} 41...
Kf7 {[%clk 0:00:05.6]} 42. c8=Q {[%clk 0:00:03.9]} 42... Nxc8 {[%clk 0:00:05.5]}
43. Rgxc8 {[%clk 0:00:04.5]} 43... Re4 {[%clk 0:00:06.4]} 44. Kf2 {[%clk
0:00:04.2]} 44... Rxf4+ {[%clk 0:00:06.2]} 45. Ke3 {[%clk 0:00:04.9]} 45... Rf1
{[%clk 0:00:06.7]} 46. Rb7+ {[%clk 0:00:05.2]} 46... Kf6 {[%clk 0:00:07.3]} 47.
Rxa7 {[%clk 0:00:05.6]} 47... Re1+ {[%clk 0:00:07.8]} 48. Kd4 {[%clk 0:00:06.1]}
48... Rh1 {[%clk 0:00:07.6]} 49. Kc5 {[%clk 0:00:05.8]} 49... Rxh2 {[%clk
0:00:07.6]} 50. c4 {[%clk 0:00:05.7]} 50... Rb2 {[%clk 0:00:06.3]} 51. Rh8
{[%clk 0:00:05.3]} 51... Kg5 {[%clk 0:00:06.5]} 52. Rg7+ {[%clk 0:00:04.8]}
52... Kh4 {[%clk 0:00:07]} 53. Rgh7 {[%clk 0:00:05.1]} 53... Rxa2 {[%clk
0:00:07.4]} 54. Rxh5+ {[%clk 0:00:05.4]} 54... Kg4 {[%clk 0:00:08.1]} 55. R5h7
{[%clk 0:00:06.2]} 55... Ra5+ {[%clk 0:00:08.2]} 56. Kb6 {[%clk 0:00:06.5]}
56... Ra3 {[%clk 0:00:07.8]} 57. c5 {[%clk 0:00:07]} 57... Rb3+ {[%clk
0:00:08.4]} 58. Kc7 {[%clk 0:00:07.3]} 58... Kf5 {[%clk 0:00:09.1]} 59. c6
{[%clk 0:00:07.8]} 59... Ke6 {[%clk 0:00:09.8]} 60. Rh6+ {[%clk 0:00:08.1]}
60... Kd5 {[%clk 0:00:10.2]} 61. Rh5+ {[%clk 0:00:08.5]} 61... Ke6 {[%clk
0:00:10.3]} 62. R8h6+ {[%clk 0:00:08.8]} 62... Kf7 {[%clk 0:00:10.8]} 63. Rd6
{[%clk 0:00:08.9]} 63... Ra3 {[%clk 0:00:09.4]} 64. Rh7+ {[%clk 0:00:08.8]}
64... Kg8 {[%clk 0:00:09.9]} 65. Rhd7 {[%clk 0:00:08.4]} 65... Ra7+ {[%clk
0:00:09.8]} 66. Kb6 {[%clk 0:00:08.5]} 66... Ra1 {[%clk 0:00:09.5]} 67. c7
{[%clk 0:00:08.6]} 67... Rb1+ {[%clk 0:00:09.9]} 68. Ka5 {[%clk 0:00:09]} 68...
Rc1 {[%clk 0:00:09.5]} 69. Rd8+ {[%clk 0:00:08.8]} 69... Kh7 {[%clk 0:00:09.7]}
70. c8=Q {[%clk 0:00:09.6]} 70... Rc6 {[%clk 0:00:09.3]} 71. Rxc6 {[%clk
0:00:08.8]} 1-0

[Event "Early-Titled-Tuesday-Blitz-March-26-2024"]
[Site "Chess.com"]
[Date "2024.03.26"]
[Round "7"]
[White "Donskov_AN"]
[Black "Cheer_Down"]
[Result "1-0"]
[WhiteElo "2390"]
[BlackElo "2486"]
[TimeControl "180+1"]
[EndTime "9:16:30 PDT"]
[Termination "Donskov_AN won by resignation"]

1. e4 {[%clk 0:02:59.5]} 1... e5 {[%clk 0:02:53.4]} 2. Nf3 {[%clk 0:02:59.3]}
2... Nc6 {[%clk 0:02:53.7]} 3. Nc3 {[%clk 0:02:59.8]} 3... Nf6 {[%clk
0:02:53.3]} 4. d4 {[%clk 0:02:59.9]} 4... exd4 {[%clk 0:02:52.3]} 5. Nxd4 {[%clk
0:03:00.8]} 5... Nxe4 {[%clk 0:02:52.5]} 6. Nxe4 {[%clk 0:02:58.8]} 6... Qe7
{[%clk 0:02:52]} 7. f3 {[%clk 0:02:53.2]} 7... d5 {[%clk 0:02:46.1]} 8. Bb5
{[%clk 0:02:51.1]} 8... Bd7 {[%clk 0:02:44.9]} 9. Nxc6 {[%clk 0:02:49.3]} 9...
bxc6 {[%clk 0:02:45]} 10. Bd3 {[%clk 0:02:47.1]} 10... dxe4 {[%clk 0:02:43.3]}
11. fxe4 {[%clk 0:02:47.3]} 11... Qc5 {[%clk 0:02:37.2]} 12. Qf3 {[%clk
0:02:44.3]} 12... Bd6 {[%clk 0:02:33.4]} 13. Qf2 {[%clk 0:02:40]} 13... O-O
{[%clk 0:02:24.7]} 14. Qxc5 {[%clk 0:02:39.1]} 14... Bxc5 {[%clk 0:02:24.4]} 15.
Bf4 {[%clk 0:02:29.1]} 15... Bd6 {[%clk 0:02:17.8]} 16. O-O {[%clk 0:02:26.7]}
16... Rab8 {[%clk 0:02:14.3]} 17. b3 {[%clk 0:02:26.3]} 17... Be6 {[%clk
0:02:11.8]} 18. Rad1 {[%clk 0:02:25.7]} 18... Rfd8 {[%clk 0:02:08.5]} 19. h3
{[%clk 0:02:23.6]} 19... f6 {[%clk 0:02:01.9]} 20. g4 {[%clk 0:02:20.6]} 20...
Bxf4 {[%clk 0:01:54.6]} 21. Rxf4 {[%clk 0:02:20.4]} 21... a5 {[%clk 0:01:49]}
22. Kf2 {[%clk 0:02:19.9]} 22... h6 {[%clk 0:01:47.2]} 23. Ke3 {[%clk
0:02:20.1]} 23... Rb4 {[%clk 0:01:43.7]} 24. e5 {[%clk 0:02:14.1]} 24... Rxf4
{[%clk 0:01:42]} 25. Kxf4 {[%clk 0:02:14]} 25... fxe5+ {[%clk 0:01:39.6]} 26.
Kxe5 {[%clk 0:02:14]} 26... Bd5 {[%clk 0:01:38.8]} 27. Bg6 {[%clk 0:01:54.9]}
27... Rd7 {[%clk 0:01:33.9]} 28. c4 {[%clk 0:01:42.9]} 28... Be6 {[%clk
0:01:18.1]} 29. Rxd7 {[%clk 0:01:41.2]} 29... Bxd7 {[%clk 0:01:18.3]} 30. c5
{[%clk 0:01:37.7]} 30... Kf8 {[%clk 0:01:15.5]} 31. Be4 {[%clk 0:01:11.6]} 31...
Ke7 {[%clk 0:01:15.2]} 32. Bf3 {[%clk 0:01:11]} 32... g5 {[%clk 0:00:57.3]} 33.
Be4 {[%clk 0:01:09.8]} 33... Kf7 {[%clk 0:00:55.1]} 34. Bc2 {[%clk 0:01:07.7]}
34... Ke7 {[%clk 0:00:53.5]} 35. Bd3 {[%clk 0:01:07.9]} 35... Kf7 {[%clk
0:00:52.5]} 36. a4 {[%clk 0:00:47.9]} 36... Ke7 {[%clk 0:00:49.2]} 37. Bc4
{[%clk 0:00:38.5]} 37... Bc8 {[%clk 0:00:39.9]} 38. Kd4 {[%clk 0:00:37.6]} 38...
Kf6 {[%clk 0:00:38.7]} 39. b4 {[%clk 0:00:36.7]} 39... axb4 {[%clk 0:00:35.1]}
40. a5 {[%clk 0:00:36.9]} 40... h5 {[%clk 0:00:19.3]} 41. a6 {[%clk 0:00:35.6]}
41... hxg4 {[%clk 0:00:16.8]} 42. hxg4 {[%clk 0:00:36.1]} 42... Ke7 {[%clk
0:00:14.5]} 43. a7 {[%clk 0:00:33.1]} 43... Bb7 {[%clk 0:00:14.3]} 44. Ba6
{[%clk 0:00:32.5]} 44... Ba8 {[%clk 0:00:14.5]} 45. Kc4 {[%clk 0:00:32.6]} 45...
Kf6 {[%clk 0:00:14.9]} 46. Kxb4 {[%clk 0:00:31]} 46... Ke5 {[%clk 0:00:15.4]}
47. Bc8 {[%clk 0:00:29.9]} 47... Kf4 {[%clk 0:00:15.5]} 48. Kc4 {[%clk
0:00:29.7]} 48... Ke4 {[%clk 0:00:15.6]} 49. Bd7 {[%clk 0:00:29.6]} 49... Ke3
{[%clk 0:00:16]} 50. Bf5 {[%clk 0:00:22.8]} 50... Bb7 {[%clk 0:00:16]} 51. Kc3
{[%clk 0:00:22.7]} 51... Ba8 {[%clk 0:00:14.8]} 52. Kb4 {[%clk 0:00:14.4]} 52...
Kd4 {[%clk 0:00:14.7]} 53. Be6 {[%clk 0:00:13.2]} 53... Bb7 {[%clk 0:00:13.5]}
54. Bc8 {[%clk 0:00:12.2]} 54... Ba8 {[%clk 0:00:13.9]} 55. Ka5 {[%clk
0:00:08.1]} 55... Kxc5 {[%clk 0:00:12.9]} 56. Ka6 {[%clk 0:00:08.5]} 56... Kd4
{[%clk 0:00:06.9]} 57. Bb7 {[%clk 0:00:08.8]} 57... c5 {[%clk 0:00:07.5]} 58.
Bxa8 {[%clk 0:00:09.4]} 58... c4 {[%clk 0:00:08.4]} 59. Be4 {[%clk 0:00:08.7]}
59... Kxe4 {[%clk 0:00:07.9]} 60. a8=Q+ {[%clk 0:00:09]} 60... Kd3 {[%clk
0:00:08.8]} 61. Qd5+ {[%clk 0:00:07.9]} 61... Kc2 {[%clk 0:00:08.6]} 62. Qxc4+
{[%clk 0:00:07.9]} 1-0

[Event "Early-Titled-Tuesday-Blitz-March-26-2024"]
[Site "Chess.com"]
[Date "2024.03.26"]
[Round "7"]
[White "SashaKuzhilniy"]
[Black "Zhigalko_Sergei"]
[Result "1-0"]
[WhiteElo "2620"]
[BlackElo "2877"]
[TimeControl "180+1"]
[EndTime "9:16:33 PDT"]
[Termination "SashaKuzhilniy won on time"]

1. c4 {[%clk 0:03:00.9]} 1... e5 {[%clk 0:02:59.4]} 2. g3 {[%clk 0:03:00.6]}
2... Nf6 {[%clk 0:02:59.7]} 3. Bg2 {[%clk 0:03:01.2]} 3... c6 {[%clk 0:03:00.2]}
4. Nf3 {[%clk 0:02:59.6]} 4... d6 {[%clk 0:03:00.3]} 5. O-O {[%clk 0:02:58.7]}
5... Be7 {[%clk 0:03:00.2]} 6. Nc3 {[%clk 0:02:59]} 6... O-O {[%clk 0:02:59]} 7.
e4 {[%clk 0:02:59.2]} 7... Bg4 {[%clk 0:02:49.9]} 8. d4 {[%clk 0:02:55.7]} 8...
Nbd7 {[%clk 0:02:46.9]} 9. Be3 {[%clk 0:02:53.8]} 9... exd4 {[%clk 0:02:31.7]}
10. Qxd4 {[%clk 0:02:49.3]} 10... Qc7 {[%clk 0:02:25.5]} 11. h3 {[%clk
0:02:46.7]} 11... Bxf3 {[%clk 0:02:17.3]} 12. Bxf3 {[%clk 0:02:47.6]} 12... Rfe8
{[%clk 0:02:17.2]} 13. Bg2 {[%clk 0:02:46.7]} 13... a5 {[%clk 0:02:11.5]} 14.
Rad1 {[%clk 0:02:44.6]} 14... a4 {[%clk 0:02:01.6]} 15. Rfe1 {[%clk 0:02:41.5]}
15... Qa5 {[%clk 0:01:55.9]} 16. f4 {[%clk 0:02:34.6]} 16... Nc5 {[%clk
0:01:46.1]} 17. Kh2 {[%clk 0:02:27.1]} 17... h6 {[%clk 0:01:42.6]} 18. g4 {[%clk
0:02:24.8]} 18... Rad8 {[%clk 0:01:17.5]} 19. Ne2 {[%clk 0:01:41.8]} 19... Nfxe4
{[%clk 0:01:05.2]} 20. Bxe4 {[%clk 0:01:01.5]} 20... Bf6 {[%clk 0:01:04.9]} 21.
Qd2 {[%clk 0:01:01.2]} 21... Qxd2 {[%clk 0:01:02.8]} 22. Rxd2 {[%clk 0:01:01.6]}
22... Nxe4 {[%clk 0:00:54.2]} 23. Rc2 {[%clk 0:01:00.6]} 23... Nc5 {[%clk
0:00:46.5]} 24. Ng3 {[%clk 0:00:55.5]} 24... Nd3 {[%clk 0:00:45.5]} 25. Ree2
{[%clk 0:00:54.1]} 25... g6 {[%clk 0:00:22.5]} 26. Bb6 {[%clk 0:00:41.7]} 26...
Ra8 {[%clk 0:00:19.8]} 27. Ne4 {[%clk 0:00:37]} 27... Be7 {[%clk 0:00:19]} 28.
Kg3 {[%clk 0:00:35.3]} 28... d5 {[%clk 0:00:15.2]} 29. cxd5 {[%clk 0:00:32.3]}
29... cxd5 {[%clk 0:00:16.1]} 30. Nc3 {[%clk 0:00:29.1]} 30... Nb4 {[%clk
0:00:11.6]} 31. Rcd2 {[%clk 0:00:27.1]} 31... Bf6 {[%clk 0:00:05.9]} 32. Rxe8+
{[%clk 0:00:17.8]} 32... Rxe8 {[%clk 0:00:06.8]} 33. Nxa4 {[%clk 0:00:16.4]}
33... Nc6 {[%clk 0:00:03.4]} 34. Nc3 {[%clk 0:00:13]} 34... d4 {[%clk
0:00:03.1]} 35. Nd5 {[%clk 0:00:12.6]} 35... Bg7 {[%clk 0:00:03.2]} 36. Kf3
{[%clk 0:00:11.3]} 36... g5 {[%clk 0:00:03.1]} 37. Bc7 {[%clk 0:00:09]} 37...
Re6 {[%clk 0:00:02.5]} 38. f5 {[%clk 0:00:08.4]} 38... Re8 {[%clk 0:00:02.5]}
39. Bg3 {[%clk 0:00:08.4]} 39... Be5 {[%clk 0:00:02.4]} 40. Bf2 {[%clk
0:00:08.5]} 40... Kf8 {[%clk 0:00:02.4]} 41. b4 {[%clk 0:00:08.1]} 41... Rd8
{[%clk 0:00:02.8]} 42. Nb6 {[%clk 0:00:07.7]} 42... Bc7 {[%clk 0:00:03.2]} 43.
Nc4 {[%clk 0:00:07.9]} 43... b5 {[%clk 0:00:03.6]} 44. Nb2 {[%clk 0:00:07.1]}
44... Nxb4 {[%clk 0:00:03.4]} 45. Rxd4 {[%clk 0:00:06.4]} 45... Rxd4 {[%clk
0:00:03.1]} 46. Bxd4 {[%clk 0:00:07.3]} 46... Nxa2 {[%clk 0:00:03.7]} 47. Nd3
{[%clk 0:00:07.3]} 47... Bd6 {[%clk 0:00:03.7]} 48. Ke4 {[%clk 0:00:07.3]} 48...
Nb4 {[%clk 0:00:03.2]} 49. Nxb4 {[%clk 0:00:06.1]} 49... Bxb4 {[%clk 0:00:04.1]}
50. Kd5 {[%clk 0:00:06.7]} 50... Be7 {[%clk 0:00:03.9]} 51. Kc6 {[%clk
0:00:04.2]} 51... b4 {[%clk 0:00:03.8]} 52. Kb5 {[%clk 0:00:04.8]} 52... b3
{[%clk 0:00:03.9]} 53. Kc4 {[%clk 0:00:05.1]} 53... Ke8 {[%clk 0:00:02.8]} 54.
Kxb3 {[%clk 0:00:05.5]} 54... Kd7 {[%clk 0:00:02.6]} 55. Kc4 {[%clk 0:00:06.2]}
55... f6 {[%clk 0:00:02.1]} 56. Kd5 {[%clk 0:00:06.3]} 56... Bd8 {[%clk
0:00:02.7]} 57. Bc5 {[%clk 0:00:06.5]} 57... Be7 {[%clk 0:00:02.2]} 58. Bxe7
{[%clk 0:00:06.3]} 58... Kxe7 {[%clk 0:00:03.1]} 59. Kc6 {[%clk 0:00:07]} 59...
h5 {[%clk 0:00:03.1]} 60. gxh5 {[%clk 0:00:05.6]} 60... Kf7 {[%clk 0:00:03.8]}
61. Kd6 {[%clk 0:00:06.2]} 61... Kg7 {[%clk 0:00:04.5]} 62. Ke6 {[%clk
0:00:06.6]} 62... Kh6 {[%clk 0:00:05.2]} 63. Kxf6 {[%clk 0:00:07.1]} 63... g4
{[%clk 0:00:05.9]} 64. hxg4 {[%clk 0:00:06.8]} 1-0

[Event "Early-Titled-Tuesday-Blitz-March-26-2024"]
[Site "Chess.com"]
[Date "2024.03.26"]
[Round "7"]
[White "monomita"]
[Black "Durarbayli"]
[Result "0-1"]
[WhiteElo "2771"]
[BlackElo "2935"]
[TimeControl "180+1"]
[EndTime "9:16:44 PDT"]
[Termination "Durarbayli won by resignation"]

1. e4 {[%clk 0:03:00.9]} 1... e5 {[%clk 0:02:58.2]} 2. Nf3 {[%clk 0:03:01.1]}
2... Nc6 {[%clk 0:02:58.6]} 3. Bc4 {[%clk 0:03:01.1]} 3... Nf6 {[%clk
0:02:58.2]} 4. d3 {[%clk 0:03:00.2]} 4... h6 {[%clk 0:02:56.8]} 5. a4 {[%clk
0:02:56.6]} 5... d6 {[%clk 0:02:56.9]} 6. Nc3 {[%clk 0:02:56.2]} 6... g6 {[%clk
0:02:51.9]} 7. O-O {[%clk 0:02:54]} 7... Bg7 {[%clk 0:02:52.2]} 8. h3 {[%clk
0:02:53]} 8... O-O {[%clk 0:02:52.1]} 9. Nd5 {[%clk 0:02:50.9]} 9... Nxd5 {[%clk
0:02:50.7]} 10. Bxd5 {[%clk 0:02:50.5]} 10... Ne7 {[%clk 0:02:50.3]} 11. Bb3
{[%clk 0:02:48.1]} 11... c6 {[%clk 0:02:11.2]} 12. d4 {[%clk 0:02:41.4]} 12...
exd4 {[%clk 0:02:09.5]} 13. Nxd4 {[%clk 0:02:40.8]} 13... d5 {[%clk 0:02:10.2]}
14. exd5 {[%clk 0:02:34.7]} 14... Nxd5 {[%clk 0:02:11.1]} 15. c3 {[%clk
0:02:29.3]} 15... Re8 {[%clk 0:02:01.5]} 16. Re1 {[%clk 0:02:17.1]} 16... Rxe1+
{[%clk 0:01:57.5]} 17. Qxe1 {[%clk 0:02:17.1]} 17... c5 {[%clk 0:01:42.2]} 18.
Nb5 {[%clk 0:01:52.6]} 18... Be6 {[%clk 0:01:39]} 19. Bxd5 {[%clk 0:01:44.5]}
19... Bxd5 {[%clk 0:01:36]} 20. Bf4 {[%clk 0:01:44.1]} 20... Bc6 {[%clk
0:01:23.9]} 21. Bg3 {[%clk 0:01:16.5]} 21... Qd5 {[%clk 0:01:12.6]} 22. f3
{[%clk 0:01:14.4]} 22... Qb3 {[%clk 0:00:54.2]} 23. Qe2 {[%clk 0:00:35.8]} 23...
Re8 {[%clk 0:00:47.7]} 24. Qd2 {[%clk 0:00:35.3]} 24... Bxb5 {[%clk 0:00:43.6]}
25. axb5 {[%clk 0:00:35.6]} 25... Qxb5 {[%clk 0:00:44.5]} 26. Rxa7 {[%clk
0:00:35.1]} 26... Re2 {[%clk 0:00:38]} 27. Ra8+ {[%clk 0:00:33.1]} 27... Kh7
{[%clk 0:00:20.3]} 28. Qd8 {[%clk 0:00:32.9]} 28... g5 {[%clk 0:00:21]} 29. h4
{[%clk 0:00:09.7]} 29... gxh4 {[%clk 0:00:17.2]} 30. Bxh4 {[%clk 0:00:09.3]}
30... Qc4 {[%clk 0:00:08.5]} 31. Bf6 {[%clk 0:00:07.4]} 31... Re1+ {[%clk
0:00:08.8]} 32. Kf2 {[%clk 0:00:05.5]} 32... Re2+ {[%clk 0:00:01.9]} 33. Kg3
{[%clk 0:00:04.7]} 33... Kg6 {[%clk 0:00:02.2]} 34. Bxg7 {[%clk 0:00:04.2]}
34... Qe6 {[%clk 0:00:01.6]} 35. Bd4 {[%clk 0:00:02.2]} 35... cxd4 {[%clk
0:00:01.1]} 36. Qg8+ {[%clk 0:00:02.9]} 36... Kh5 {[%clk 0:00:01.6]} 37. Qg4+
{[%clk 0:00:03.3]} 37... Qxg4+ {[%clk 0:00:02.3]} 38. fxg4+ {[%clk 0:00:04.2]}
38... Kg5 {[%clk 0:00:02.9]} 39. Ra5+ {[%clk 0:00:04.6]} 39... Kg6 {[%clk
0:00:02.9]} 40. cxd4 {[%clk 0:00:04.2]} 40... Rxb2 {[%clk 0:00:03.1]} 41. d5
{[%clk 0:00:04.8]} 41... Kf6 {[%clk 0:00:03.3]} 42. d6 {[%clk 0:00:04.5]} 42...
Ke6 {[%clk 0:00:03.5]} 43. Rd5 {[%clk 0:00:02]} 43... Rb3+ {[%clk 0:00:03.3]}
44. Kh4 {[%clk 0:00:01.6]} 44... Kd7 {[%clk 0:00:03.1]} 45. Rf5 {[%clk
0:00:02.2]} 45... Kxd6 {[%clk 0:00:02.3]} 46. Rxf7 {[%clk 0:00:02.6]} 46... b5
{[%clk 0:00:03.2]} 47. Rf6+ {[%clk 0:00:03]} 47... Kc5 {[%clk 0:00:03.9]} 48.
Rxh6 {[%clk 0:00:03.7]} 48... b4 {[%clk 0:00:04.8]} 49. g5 {[%clk 0:00:03.9]}
49... Rd3 {[%clk 0:00:05.4]} 50. g6 {[%clk 0:00:03.9]} 50... Rd8 {[%clk
0:00:03.5]} 51. g7 {[%clk 0:00:04.1]} 51... Rg8 {[%clk 0:00:03.7]} 52. Rg6
{[%clk 0:00:03.8]} 52... b3 {[%clk 0:00:04.2]} 53. Rg5+ {[%clk 0:00:02.2]} 53...
Kc4 {[%clk 0:00:04.7]} 54. Rg4+ {[%clk 0:00:02.9]} 54... Kc3 {[%clk 0:00:05.1]}
55. Rg3+ {[%clk 0:00:03.4]} 55... Kc2 {[%clk 0:00:05.4]} 56. Rxb3 {[%clk
0:00:03.8]} 56... Kxb3 {[%clk 0:00:05.4]} 57. Kh5 {[%clk 0:00:04.5]} 57... Rxg7
{[%clk 0:00:05.1]} 58. g4 {[%clk 0:00:05.4]} 58... Kc4 {[%clk 0:00:05.5]} 59. g5
{[%clk 0:00:06.3]} 59... Kd5 {[%clk 0:00:05.7]} 60. Kh6 {[%clk 0:00:07.2]} 60...
Rg8 {[%clk 0:00:02]} 61. g6 {[%clk 0:00:07.9]} 61... Ke6 {[%clk 0:00:02.6]} 62.
Kh7 {[%clk 0:00:08.7]} 62... Rc8 {[%clk 0:00:02.9]} 63. Kg7 {[%clk 0:00:08.3]}
63... Rd8 {[%clk 0:00:03.1]} 64. Kh6 {[%clk 0:00:07.2]} 64... Kf6 {[%clk
0:00:04]} 65. Kh7 {[%clk 0:00:07.8]} 65... Rc8 {[%clk 0:00:04]} 66. g7 {[%clk
0:00:07.8]} 66... Kf7 {[%clk 0:00:04.9]} 0-1